bitfinex/quotes_ETHUSD_20250216
["timestamp","ask_amount","ask_price","bid_price","bid_amount"]
[1739747875224,0.95250506,2658.8,2657.8,4.47552958]
[1739747875368,0.95250506,2658.8,2658.4,3.76157]
[1739747875714,0.295,2658.7,2658.2,3.76194]
[1739747875872,0.295,2658.7,2658.5,3.7615]
[1739747876068,0.295,2658.7,2658.5,3.76144]
[1739747876268,0.295,2658.7,2658.3,4.53778]
[1739747876475,0.79584551,2658.7,2658.3,3.76169]
[1739747876814,0.04702014,2658.6,2658.3,3.76169]
[1739747877113,0.79584551,2658.7,2658.0,3.76222]
[1739747877114,4.31154,2658.5,2658.0,3.76222]
[1739747877324,3.76139,2658.6,2658.0,3.76222]
[1739747877617,4.717179,2658.5,2658.0,3.76222]
[1739747879684,4.717179,2658.5,2658.0,3.69383823]
[1739747880115,4.717179,2658.5,2658.0,3.76222]
[1739747880588,0.955639,2658.5,2658.0,3.76222]
[1739747880785,0.955639,2658.5,2658.2,3.76186]
[1739747881088,1.250639,2658.5,2658.1,3.76202]
[1739747881305,1.250639,2658.5,2657.8,3.64352958]
[1739747881503,1.79750506,2658.5,2658.2,3.76185]
[1739747881795,1.79750506,2658.5,2658.3,3.76177]
[1739747882031,1.24750506,2658.5,2658.1,3.76202]
[1739747883435,0.04702388,2658.4,2658.1,3.76202]
[1739747883639,0.04702388,2658.4,2658.2,3.0]
[1739747883789,1.24750506,2658.5,2658.2,3.0]
[1739747883991,0.50089651,2658.4,2658.2,3.0]
[1739747884298,5.00902506,2658.5,2658.2,3.0]
[1739747884730,1.24750506,2658.5,2658.4,3.76166]
[1739747885109,1.24750506,2658.5,2658.3,3.76178]
[1739747885843,0.95250506,2658.5,2658.3,3.76168]
[1739747886028,0.95250506,2658.5,2658.4,3.76166]
[1739747886349,0.295,2658.7,2658.4,3.76166]
[1739747886518,0.295,2658.7,2658.5,3.76151]
[1739747886917,0.295,2658.7,2658.4,3.76165]
[1739747887443,0.295,2658.7,2658.6,3.76137]
[1739747887947,0.295,2658.7,2658.5,3.76151]
[1739747888146,0.295,2658.7,2658.4,3.76165]
[1739747888443,0.295,2658.7,2658.3,6.76169]
[1739747888611,0.295,2658.7,2658.3,3.0]
[1739747888798,0.295,2658.7,2658.2,3.76181]
[1739747888799,3.76139,2658.6,2658.2,3.76181]
[1739747888999,3.76139,2658.6,2658.2,3.0]
[1739747889953,0.700609,2658.7,2657.9,3.0]
[1739747890153,0.700609,2658.7,2658.3,3.7617]
[1739747890433,4.461849,2658.7,2658.2,3.76193]
[1739747890636,0.8223029,2658.6,2658.2,3.76193]
[1739747890942,0.8223029,2658.6,2658.4,3.76157]
[1739747891111,4.31063,2659.2,2658.5,3.76149]
[1739747891315,0.295,2658.6,2658.5,3.76149]
[1739747891810,3.76068,2659.1,2658.5,3.76149]
[1739747891811,3.7609,2659.0,2658.5,3.76149]
[1739747892141,1.047158,2658.9,2658.5,7.52291]
[1739747892434,1.047158,2658.9,2658.6,3.76126]
[1739747892842,1.047158,2658.9,2658.6,3.76137]
[1739747893041,0.295,2659.1,2658.4,3.0]
[1739747893243,2.06625351,2659.7,2659.4,3.7602]
[1739747893447,0.55,2659.6,2659.0,3.76072]
[1739747893617,4.0265259,2659.5,2658.9,6.76086]
[1739747893822,0.2663259,2659.5,2658.6,3.76136]
[1739747894143,3.76061,2659.2,2658.6,3.76136]
[1739747894338,4.31039,2659.3,2658.8,3.76099]
[1739747894941,4.31039,2659.3,2658.7,3.7612]
[1739747895138,0.807073,2659.2,2658.8,3.76107]
[1739747895309,0.807073,2659.2,2658.9,3.76094]
[1739747896140,0.807073,2659.2,2658.7,3.76119]
[1739747896351,0.807073,2659.2,2658.7,3.76114]
[1739747896879,0.807073,2659.2,2658.9,3.76094]
[1739747897048,0.807073,2659.2,2658.8,3.76103]
[1739747898039,0.807073,2659.2,2658.5,3.64352958]
[1739747898243,0.295,2659.2,2659.0,3.7608]
[1739747899020,0.295,2659.2,2658.9,3.76087]
[1739747899421,0.295,2659.2,2659.0,3.76081]
[1739747900256,0.295,2659.2,2658.9,3.76087]
[1739747900871,0.0470102,2659.1,2658.7,3.76114]
[1739747901186,0.295,2659.2,2658.8,3.76098]
[1739747901333,0.70055,2659.2,2658.8,3.76098]
[1739747902275,0.74756419,2659.2,2658.7,3.0]
[1739747902576,0.74756419,2659.2,2658.7,6.76114]
[1739747902776,0.70055,2659.2,2658.7,6.76114]
[1739747904074,0.70055,2659.2,2658.9,3.76084]
[1739747904267,0.295,2659.2,2659.0,3.7607]
[1739747905365,0.295,2659.2,2658.9,3.76084]
[1739747905565,0.295,2659.2,2658.8,0.7795]
[1739747905868,0.295,2659.2,2658.9,3.76088]
[1739747906033,0.295,2659.2,2658.9,7.52173]
[1739747906569,0.295,2659.2,2658.9,3.76085]
[1739747907071,0.295,2659.2,2658.8,0.7795]
[1739747907256,0.79579151,2659.2,2658.9,3.76092]
[1739747907847,0.79579151,2659.2,2659.0,3.7608]
[1739747908272,0.79579151,2659.2,2658.9,3.76092]
[1739747908748,0.79579151,2659.2,2658.9,7.52179]
[1739747908949,0.79579151,2659.2,2659.0,3.76079]
[1739747909171,0.295,2659.3,2658.9,3.76087]
[1739747909371,0.295,2659.3,2659.0,3.76081]
[1739747909778,0.295,2659.3,2659.1,3.76064]
[1739747909991,0.295,2659.3,2659.1,3.76058]
[1739747910269,0.295,2659.8,2659.4,3.76013]
[1739747911470,2.72980186,2659.7,2659.4,3.76013]
[1739747911975,1.77125351,2659.7,2659.4,7.5203]
[1739747912190,1.77125351,2659.7,2659.4,3.76013]
[1739747913177,1.77125351,2659.7,2659.3,3.0]
[1739747913472,1.77125351,2659.7,2659.3,3.76032]
[1739747913840,1.77125351,2659.7,2659.3,6.76032]
[1739747914171,1.77125351,2659.7,2659.4,3.76015]
[1739747914495,1.77125351,2659.7,2659.5,3.76008]
[1739747914675,1.77125351,2659.7,2659.5,3.75999]
[1739747914841,1.77125351,2659.7,2659.5,7.52001]
[1739747915041,1.77125351,2659.7,2659.5,3.75999]
[1739747916359,1.77125351,2659.7,2659.4,3.7602]
[1739747917082,1.77125351,2659.7,2659.5,3.76002]
[1739747917284,1.77125351,2659.7,2659.6,3.75996]
[1739747918586,1.77125351,2659.7,2659.4,3.0]
[1739747918792,1.77125351,2659.7,2659.4,6.76023]
[1739747919150,1.77125351,2659.7,2659.6,3.75996]
[1739747919552,0.95250506,2660.7,2659.6,4.565204]
[1739747919855,3.75908,2660.3,2659.8,3.75966]
[1739747920894,3.75912,2660.2,2659.7,3.75975]
[1739747921589,0.845,2660.6,2659.8,3.75954]
[1739747921590,0.55,2660.4,2659.8,3.75954]
[1739747921787,3.75905,2660.3,2659.8,3.75954]
[1739747921990,7.51815,2660.3,2659.8,3.75954]
[1739747922193,8.269965,2660.3,2659.8,3.75954]
[1739747922591,4.510865,2660.3,2659.8,3.75954]
[1739747922988,3.75905,2660.3,2659.8,3.75954]
[1739747923358,3.75878,2660.5,2659.6,0.8132]
[1739747923573,7.51759,2660.5,2660.0,3.75937]
[1739747923866,0.55,2660.6,2660.1,3.75917]
[1739747924082,0.295,2660.5,2660.1,3.75917]
[1739747924392,4.05371,2660.5,2659.9,3.75953]
[1739747924571,4.05371,2660.5,2659.9,3.75946]
[1739747924572,3.75895,2660.4,2659.9,3.75946]
[1739747924768,4.05371,2660.5,2659.9,3.75946]
[1739747924967,4.05371,2660.5,2660.0,3.75939]
[1739747925168,3.75849,2660.7,2660.0,4.511275]
[1739747925368,0.294,2660.6,2660.2,3.75905]
[1739747925586,0.294,2660.6,2660.2,3.75904]
[1739747925897,5.52857738,2660.9,2660.2,3.75904]
[1739747926093,1.77041738,2660.9,2660.6,3.75849]
[1739747926254,1.77041738,2660.9,2660.7,3.75831]
[1739747926655,0.294,2661.1,2660.8,3.75813]
[1739747926929,0.294,2661.1,2660.8,3.75826]
[1739747927311,0.294,2661.2,2660.9,3.75803]
[1739747927461,0.294,2661.2,2661.0,3.75796]
[1739747927659,0.294,2661.3,2660.9,3.75803]
[1739747927895,0.294,2661.3,2660.9,3.75802]
[1739747928465,0.294,2661.4,2661.1,3.75774]
[1739747928662,0.294,2661.4,2661.0,7.57388]
[1739747929887,3.75706,2661.7,2661.0,7.57388]
[1739747930090,0.294,2661.5,2661.2,3.75758]
[1739747930473,0.294,2661.5,2661.1,3.75779]
[1739747930691,0.294,2661.5,2661.0,4.57379]
[1739747931008,3.75706,2661.7,2661.4,3.75739]
[1739747931009,0.294,2661.7,2661.4,3.75739]
[1739747931165,3.75672,2661.9,2661.4,3.75739]
[1739747931366,0.294,2661.8,2661.4,3.75739]
[1739747931577,0.294,2661.8,2661.2,3.75761]
[1739747931773,0.294,2661.8,2661.3,3.75748]
[1739747932268,4.05091,2661.8,2661.2,3.7576]
[1739747932468,3.75742,2661.4,2660.7,3.7966]
[1739747932668,3.75713,2661.6,2661.0,3.0]
[1739747932903,3.75729,2661.5,2661.0,6.75795]
[1739747933583,7.51439,2661.6,2661.0,6.75795]
[1739747933787,3.75729,2661.5,2661.0,6.75795]
[1739747933986,4.508732,2661.5,2661.0,6.75795]
[1739747934197,4.508732,2661.5,2661.0,3.0]
[1739747934424,3.75743,2661.4,2661.0,3.0]
[1739747934766,3.75743,2661.4,2660.7,7.55491]
[1739747935293,3.75743,2661.4,2661.0,3.0]
[1739747935471,0.751442,2661.5,2661.0,6.75795]
[1739747935671,0.751442,2661.5,2661.1,3.7577]
[1739747936308,4.508722,2661.5,2661.0,6.75798]
[1739747936481,0.751442,2661.5,2661.0,6.75798]
[1739747936687,4.508752,2661.5,2661.0,6.75798]
[1739747936885,0.294,2661.5,2661.0,3.7579]
[1739747937098,4.09833158,2661.5,2661.0,3.7579]
[1739747937402,3.75778,2661.2,2660.7,0.7966]
[1739747937570,3.75785,2661.1,2660.6,3.75848]
[1739747937775,3.75813,2660.9,2660.4,4.57202]
[1739747937975,3.75826,2660.8,2660.3,3.75897]
[1739747938188,3.75844,2660.7,2660.2,3.8133]
[1739747938396,3.75863,2660.6,2659.8,0.8133]
[1739747938717,3.75863,2660.6,2660.1,3.75925]
[1739747938913,0.781105,2660.6,2660.1,3.75925]
[1739747939208,0.294,2660.7,2660.2,4.57234]
[1739747939400,4.0525,2660.7,2660.2,4.57234]
[1739747939598,0.294,2660.7,2660.2,4.57234]
[1739747939799,4.05251,2660.7,2660.2,4.57234]
[1739747940388,0.294,2660.7,2660.2,4.57232]
[1739747940583,0.294,2660.7,2660.4,3.75882]
[1739747940788,0.294,2660.7,2660.2,0.8133]
[1739747940991,0.95250506,2660.9,2660.5,7.51721]
[1739747941316,0.294,2660.8,2660.7,3.75837]
[1739747941481,0.95250506,2661.5,2660.7,6.75833]
[1739747941482,0.294,2661.0,2660.7,6.75833]
[1739747941880,0.294,2661.0,2660.8,3.75826]
[1739747942078,0.95250506,2661.5,2660.7,3.0]
[1739747942280,0.18966969,2662.3,2661.4,3.64352958]
[1739747942281,0.95250506,2662.3,2661.4,3.64352958]
[1739747942617,5.52608912,2662.2,2661.5,3.75717]
[1739747942912,4.05006,2662.4,2661.7,3.0]
[1739747943119,3.75623,2662.3,2661.7,3.0]
[1739747943417,3.75665,2662.0,2661.6,0.8133]
[1739747943710,4.05008,2662.4,2661.7,3.75691]
[1739747943918,3.7563,2662.2,2661.5,6.75727]
[1739747944082,3.75656,2662.1,2661.5,6.75727]
[1739747944280,3.75659,2662.0,2661.5,6.75727]
[1739747944495,3.75659,2662.0,2661.5,3.0]
[1739747944714,3.75695,2661.8,2661.2,4.57098]
[1739747945011,7.5139,2661.8,2661.2,4.57098]
[1739747945325,7.51391,2661.8,2661.2,4.57098]
[1739747945501,7.51394,2661.8,2661.2,3.8133]
[1739747945675,3.75735,2661.5,2661.0,3.0]
[1739747946127,3.75749,2661.4,2661.0,3.0]
[1739747946424,3.80456475,2661.3,2660.7,3.75832]
[1739747946602,0.294,2661.6,2660.6,0.8133]
[1739747946603,3.80468522,2661.2,2660.6,0.8133]
[1739747946810,3.75799,2661.0,2660.5,3.75856]
[1739747947120,3.75799,2661.0,2660.6,3.0]
[1739747947636,0.55,2661.1,2660.7,3.75836]
[1739747947994,0.55,2661.1,2660.6,3.0]
[1739747948535,3.93752958,2661.6,2660.6,3.0]
[1739747948536,0.55,2661.5,2660.6,3.75843]
[1739747948714,0.55,2661.1,2660.6,3.75843]
[1739747949128,4.30786,2661.1,2660.6,3.75843]
[1739747949609,4.3077,2661.2,2660.3,3.8133]
[1739747949787,0.95250506,2661.1,2660.3,3.8133]
[1739747949987,3.75711,2661.7,2660.0,3.94895204]
[1739747949988,0.294,2661.2,2661.0,3.75797]
[1739747950187,1.24650506,2661.2,2661.0,3.75797]
[1739747951042,1.24650506,2661.2,2661.0,7.51576]
[1739747951247,0.294,2661.2,2661.0,3.75786]
[1739747951848,0.294,2661.2,2661.0,7.51576]
[1739747952306,0.294,2661.2,2661.0,3.75786]
[1739747952721,0.95250506,2661.5,2661.0,0.832935]
[1739747952925,0.95250506,2661.5,2661.4,3.75742]
[1739747953124,0.95250506,2661.5,2661.3,3.75752]
[1739747953334,0.95250506,2661.5,2661.1,6.75774]
[1739747953756,0.95250506,2661.5,2661.3,3.75753]
[1739747954055,0.95250506,2661.5,2661.1,6.75774]
[1739747954253,0.95250506,2661.5,2661.3,3.75753]
[1739747954621,0.95250506,2661.5,2661.1,6.75774]
[1739747955049,0.95250506,2661.5,2661.1,10.51549]
[1739747955227,0.95250506,2661.5,2661.1,6.75774]
[1739747955420,0.95250506,2661.5,2661.3,3.75753]
[1739747955649,4.05088,2661.8,2661.3,3.75753]
[1739747956008,3.757,2661.7,2661.2,3.7577]
[1739747956209,3.75715,2661.6,2660.9,3.75802]
[1739747956409,3.75742,2661.4,2660.9,3.75802]
[1739747956654,0.55,2661.7,2660.8,0.8133]
[1739747956856,1.10534351,2661.7,2661.2,3.75761]
[1739747957027,4.86247351,2661.7,2661.2,3.75761]
[1739747957228,1.10534351,2661.7,2661.2,3.75761]
[1739747957442,0.55534351,2661.7,2661.4,3.75732]
[1739747957640,0.294,2661.8,2661.5,3.75719]
[1739747957953,0.294,2661.8,2661.4,4.52779]
[1739747958135,0.294,2661.8,2661.6,3.75713]
[1739747958342,0.95250506,2661.9,2661.6,3.75713]
[1739747958871,0.95250506,2661.9,2661.6,3.75706]
[1739747959012,0.95250506,2661.9,2661.7,3.75693]
[1739747959345,0.95250506,2662.3,2662.0,3.75648]
[1739747959645,0.294,2662.5,2661.7,4.52738]
[1739747959864,0.294,2662.5,2662.2,3.75624]
[1739747960081,3.75559,2662.7,2661.8,3.7705]
[1739747960082,0.294,2662.7,2661.8,3.7705]
[1739747960214,1.24650506,2662.8,2662.5,3.75584]
[1739747960713,0.95250506,2662.8,2662.4,3.7559]
[1739747961113,3.75559,2662.7,2662.3,0.7705]
[1739747961350,3.75559,2662.7,2662.2,3.0]
[1739747961940,1.45267957,2662.8,2662.0,0.7705]
[1739747962127,0.95250506,2662.8,2662.3,3.75613]
[1739747962362,3.75572,2662.6,2662.2,3.0]
[1739747962666,0.95250506,2662.8,2662.7,3.75558]
[1739747962866,0.294,2663.0,2662.7,3.75558]
[1739747963229,4.70740506,2663.2,2662.6,3.75563]
[1739747963560,0.294,2663.1,2662.6,3.75563]
[1739747963859,5.55362457,2663.2,2662.6,3.75563]
[1739747964160,5.84762457,2663.2,2662.6,7.51122]
[1739747964321,9.60260457,2663.2,2662.6,3.75559]
[1739747964658,4.89511951,2663.2,2662.5,0.7705]
[1739747964856,3.75517,2663.0,2662.5,0.7705]
[1739747965040,3.75475,2663.3,2662.5,0.7705]
[1739747965362,4.04889,2663.2,2662.6,3.75562]
[1739747965518,0.95250506,2663.4,2662.8,3.75533]
[1739747965715,5.00110506,2663.4,2662.8,3.75533]
[1739747965961,3.75405,2663.8,2662.6,3.0]
[1739747966115,3.75443,2663.6,2663.0,4.52377]
[1739747966311,3.75441,2663.6,2663.0,4.52377]
[1739747966515,3.7546,2663.4,2663.0,0.7687]
[1739747967145,7.50882,2663.6,2663.0,4.52374]
[1739747967347,3.75437,2663.6,2663.0,4.52374]
[1739747967517,4.20627255,2663.6,2663.0,0.7687]
[1739747967718,3.75472,2663.4,2662.8,4.52406]
[1739747967937,7.50941,2663.4,2662.8,4.52406]
[1739747968151,3.75474,2663.3,2662.8,0.7687]
[1739747968535,3.75469,2663.4,2662.8,4.52403]
[1739747968750,0.375469,2663.3,2662.8,4.52403]
[1739747970559,4.04818,2663.7,2663.0,0.7687]
[1739747970883,3.75484,2663.3,2662.7,0.7687]
[1739747971183,3.7551,2663.1,2662.7,0.7687]
[1739747971342,7.51026,2663.1,2662.7,0.7687]
[1739747971542,3.7551,2663.1,2662.5,3.75584]
[1739747972064,3.7551,2663.1,2662.4,4.52463]
[1739747972065,3.7551,2663.1,2662.4,4.52461]
[1739747972248,0.75568538,2663.1,2662.6,3.7557]
[1739747972455,3.75489,2663.2,2662.6,3.7557]
[1739747972671,3.75505,2663.1,2662.4,4.52466]
[1739747972852,3.75518,2663.0,2662.4,4.52466]
[1739747973049,3.80212383,2663.0,2662.5,3.0]
[1739747973279,3.75489,2663.2,2662.6,3.75563]
[1739747973475,0.375489,2663.1,2662.6,3.75563]
[1739747974189,3.75475,2663.3,2662.8,3.75543]
[1739747974371,3.75475,2663.3,2662.7,3.75555]
[1739747974578,3.75466,2663.4,2662.9,0.7687]
[1739747974760,0.294,2663.3,2662.9,0.7687]
[1739747975192,3.75488,2663.2,2662.9,0.7687]
[1739747975683,4.04874,2663.3,2662.9,0.7687]
[1739747975881,0.294,2663.4,2662.9,0.7687]
[1739747976055,3.75436,2663.6,2662.9,4.52391]
[1739747976264,4.04846,2663.5,2663.0,3.75512]
[1739747976494,4.04846,2663.5,2662.9,4.52391]
[1739747976696,1.074282,2663.5,2662.9,4.52391]
[1739747976899,4.828802,2663.5,2663.0,3.75513]
[1739747977195,3.75468,2663.4,2662.9,4.524]
[1739747977968,3.75468,2663.4,2662.9,8.27923]
[1739747978263,1.074282,2663.5,2662.9,8.27916]
[1739747978462,1.074282,2663.5,2662.9,4.52393]
[1739747978463,4.828742,2663.5,2662.9,4.52393]
[1739747978679,0.780282,2663.5,2663.0,3.75514]
[1739747978991,3.75453,2663.5,2662.9,4.52393]
[1739747979193,0.294,2663.6,2662.9,4.52393]
[1739747979402,3.75448,2663.5,2663.0,3.75509]
[1739747979580,3.75448,2663.5,2663.0,3.75514]
[1739747980502,3.75448,2663.5,2662.9,0.7687]
[1739747980686,4.159528,2663.4,2662.9,4.52399]
[1739747982213,0.404848,2663.4,2662.9,4.52399]
[1739747982391,1.35735306,2663.4,2663.0,3.75504]
[1739747982888,0.95250506,2663.4,2663.0,3.75507]
[1739747983404,3.75454,2663.5,2663.0,3.75516]
[1739747983600,4.04843,2663.6,2663.1,3.75498]
[1739747984305,3.75379,2664.0,2663.3,3.75473]
[1739747984306,3.75383,2664.0,2663.3,3.75473]
[1739747984508,3.75403,2663.8,2663.3,7.50938]
[1739747984792,0.294,2663.7,2663.4,0.7877]
[1739747985166,4.04804,2663.8,2663.4,0.7877]
[1739747985488,4.04804,2663.8,2663.3,3.75466]
[1739747985687,3.75454,2663.5,2663.0,3.75516]
[1739747985886,3.75432,2663.6,2663.1,3.75499]
[1739747986456,7.50877,2663.6,2663.1,3.75499]
[1739747986655,3.75458,2663.5,2663.0,3.75514]
[1739747986889,4.1965723,2663.7,2663.2,3.75486]
[1739747987410,4.1965723,2663.7,2663.0,3.75506]
[1739747987411,0.44905723,2663.6,2663.0,3.75506]
[1739747987607,3.75453,2663.5,2663.0,3.75506]
[1739747987751,3.75466,2663.4,2662.9,7.54299]
[1739747987952,3.75489,2663.2,2662.7,3.75558]
[1739747988259,3.75489,2663.2,2662.5,4.54348]
[1739747988260,3.75512,2663.1,2662.5,4.54348]
[1739747988896,3.75489,2663.2,2662.7,3.75551]
[1739747989062,4.505845,2663.2,2662.7,3.75551]
[1739747989391,0.750955,2663.2,2662.9,3.75522]
[1739747989590,3.75466,2663.4,2662.9,3.75522]
[1739747989805,3.75475,2663.3,2662.8,3.75544]
[1739747990096,3.75474,2663.3,2662.8,3.75544]
[1739747990270,3.75498,2663.2,2662.6,3.75567]
[1739747990595,3.75474,2663.3,2662.6,3.75567]
[1739747990805,3.75498,2663.2,2662.6,3.75567]
[1739747991092,4.130214,2663.3,2662.7,3.75549]
[1739747991313,3.75433,2663.6,2662.7,3.0]
[1739747991597,7.50912,2663.5,2663.0,0.7877]
[1739747991760,3.80153613,2663.4,2663.0,0.7877]
[1739747992482,4.55714274,2663.4,2663.0,0.7877]
[1739747992687,3.75483,2663.3,2662.7,7.5432]
[1739747992886,3.75483,2663.3,2662.7,4.5432]
[1739747993095,3.75483,2663.3,2662.8,3.75537]
[1739747994414,3.75483,2663.3,2662.7,8.29869]
[1739747994629,3.75488,2663.2,2662.7,4.54319]
[1739747995205,7.50932,2663.4,2662.8,3.75532]
[1739747995383,3.7546,2663.4,2662.9,3.7553]
[1739747995711,3.7546,2663.4,2662.7,6.03623238]
[1739747995920,3.75474,2663.3,2662.7,9.79170238]
[1739747996216,3.75474,2663.3,2662.8,3.75543]
[1739747996524,3.75474,2663.3,2662.7,4.54317]
[1739747996724,3.75449,2663.5,2662.9,7.5105]
[1739747996893,3.7546,2663.4,2662.9,3.75522]
[1739747997294,4.70724506,2663.3,2662.9,3.75522]
[1739747997715,4.70724506,2663.3,2662.7,5.66064138]
[1739747998011,4.70724506,2663.3,2662.8,3.75543]
[1739747999598,0.95250506,2663.3,2662.9,3.75527]
[1739747999903,4.70732506,2663.3,2662.8,3.75537]
[1739748000098,5.55351257,2663.3,2662.8,3.67937]
[1739748000299,5.55350257,2663.3,2662.8,3.67937]
[1739748000744,3.75495,2663.2,2662.7,4.5432]
[1739748000944,3.80188982,2663.2,2662.7,3.75554]
[1739748001119,1.79869257,2663.3,2662.6,3.0]
[1739748001297,0.95250506,2663.3,2663.0,3.75503]
[1739748001616,0.95250506,2663.3,2662.9,3.75529]
[1739748001816,0.95250506,2663.3,2662.8,0.7537]
[1739748002018,0.95250506,2663.3,2663.1,3.75491]
[1739748003140,0.95250506,2663.3,2663.0,3.75509]
[1739748003346,0.95250506,2663.3,2663.1,3.75491]
[1739748003725,0.95250506,2663.3,2663.1,3.75493]
[1739748004244,0.95250506,2664.0,2663.5,3.75435]
[1739748004421,0.293,2663.9,2663.5,3.75435]
[1739748004634,0.293,2663.9,2663.5,3.75445]
[1739748004951,0.293,2663.8,2663.5,3.75445]
[1739748005156,0.293,2663.8,2663.5,3.75438]
[1739748005359,0.95250506,2664.0,2663.7,3.75407]
[1739748005570,0.293,2663.9,2663.8,3.75392]
[1739748005892,0.293,2663.9,2663.7,3.75407]
[1739748006358,0.293,2663.9,2663.8,3.75403]
[1739748007053,0.293,2663.9,2663.7,7.50816]
[1739748007360,1.24550506,2664.0,2663.7,7.50817]
[1739748007754,1.24550506,2664.0,2663.5,6.75432]
[1739748007959,3.75399,2663.9,2663.5,3.0]
[1739748008134,0.49994951,2663.8,2663.5,3.0]
[1739748008537,3.75391,2663.9,2663.5,3.0]
[1739748008737,3.75391,2663.9,2663.3,3.75474]
[1739748008922,3.75391,2663.9,2663.2,3.0]
[1739748008923,3.75418,2663.7,2663.2,3.0]
[1739748009123,3.75398,2663.9,2663.2,6.75476]
[1739748009324,3.75404,2663.8,2663.2,6.75476]
[1739748009519,3.75404,2663.8,2663.1,0.7537]
[1739748009520,4.505072,2663.7,2663.1,3.75498]
[1739748009760,0.04693352,2663.6,2663.1,3.75498]
[1739748009948,0.750802,2663.7,2663.2,3.7548]
[1739748010151,0.750802,2663.7,2663.3,3.75466]
[1739748010351,3.75393,2663.9,2662.9,3.0]
[1739748010554,3.75424,2663.7,2663.2,3.75487]
[1739748010743,3.75406,2663.8,2663.2,3.75487]
[1739748010940,4.70643506,2663.9,2663.3,3.75466]
[1739748011133,0.49994351,2663.8,2663.3,3.75466]
[1739748011331,0.49994351,2663.8,2663.4,3.75459]
[1739748011530,0.49994351,2663.8,2663.5,3.7544]
[1739748011840,0.95250506,2663.7,2663.3,3.75467]
[1739748012168,4.70668506,2663.7,2663.1,7.50986]
[1739748012372,0.52066286,2663.6,2663.1,7.50987]
[1739748012530,0.56759649,2663.6,2663.1,7.50987]
[1739748012722,0.56759649,2663.6,2663.1,7.50986]
[1739748012942,0.56759649,2663.6,2663.1,3.75492]
[1739748013143,4.32191649,2663.6,2663.1,6.75501]
[1739748013432,0.52744216,2663.5,2663.3,3.75473]
[1739748013632,0.52066286,2663.6,2663.3,3.75473]
[1739748013832,0.52066286,2663.6,2663.2,3.75486]
[1739748014229,0.52066286,2663.6,2663.1,3.75498]
[1739748014470,0.52066286,2663.6,2663.2,3.75486]
[1739748014847,0.52066286,2663.6,2663.2,3.75488]
[1739748015044,1.47316792,2663.6,2663.4,3.75458]
[1739748015367,1.47316792,2663.6,2663.5,3.75445]
[1739748015368,0.95250506,2663.6,2663.5,3.75445]
[1739748015974,0.95250506,2663.6,2663.4,4.51268]
[1739748016348,0.95250506,2663.6,2663.5,3.75445]
[1739748016734,0.95250506,2663.6,2663.4,0.7581]
[1739748016939,0.95250506,2663.6,2663.4,4.51269]
[1739748017976,0.95250506,2663.6,2663.5,3.75445]
[1739748018936,0.95250506,2663.6,2663.4,4.51263]
[1739748019139,0.95250506,2663.6,2663.5,3.75445]
[1739748020757,0.95250506,2663.6,2663.4,8.26714]
[1739748021068,0.95250506,2663.6,2663.4,4.51261]
[1739748021378,0.95250506,2663.6,2663.5,3.75445]
[1739748022480,0.95250506,2663.6,2663.4,4.51261]
[1739748022884,0.95250506,2663.6,2663.5,3.75445]
[1739748023279,0.95250506,2663.6,2663.4,4.51261]
[1739748023578,0.95250506,2663.6,2663.4,3.75451]
[1739748024141,0.95250506,2663.6,2663.3,3.0]
[1739748024348,0.95250506,2663.6,2663.4,3.75459]
[1739748024754,0.95250506,2663.6,2663.5,3.75445]
[1739748025285,0.95250506,2663.6,2663.3,3.0]
[1739748025487,0.95250506,2663.6,2663.5,3.75445]
[1739748026470,0.95250506,2663.6,2663.5,4.505357]
[1739748027080,0.95250506,2663.9,2663.5,3.75445]
[1739748027475,0.95250506,2663.9,2663.2,0.7581]
[1739748027680,0.95250506,2663.9,2663.6,3.75424]
[1739748027874,0.95250506,2663.9,2663.5,3.75443]
[1739748028200,4.70651506,2663.9,2663.4,3.75448]
[1739748028403,1.82783357,2663.9,2663.5,3.75445]
[1739748028565,0.95250506,2663.9,2663.6,3.75425]
[1739748029296,0.95250506,2663.9,2663.8,3.75403]
[1739748029514,0.95250506,2664.2,2663.9,3.75379]
[1739748029784,1.24550506,2664.2,2663.9,3.75389]
[1739748030407,4.99905506,2664.2,2663.6,3.75421]
[1739748030706,0.49990551,2664.1,2663.7,3.75408]
[1739748031297,0.95250506,2664.2,2663.8,3.75393]
[1739748031590,1.24550506,2664.2,2664.1,3.75361]
[1739748032239,0.95250506,2664.2,2664.1,3.75361]
[1739748032406,1.03416063,2664.2,2664.1,3.75361]
[1739748034956,0.08165557,2664.2,2664.1,3.75361]
[1739748035164,0.08165557,2664.2,2664.1,8.389844]
[1739748035392,0.95250506,2664.7,2664.5,3.75304]
[1739748035595,0.293,2664.7,2664.5,4.55804]
[1739748035871,0.08189299,2664.6,2664.5,7.55804]
[1739748036102,0.95250506,2665.2,2665.0,3.75226]
[1739748036339,0.95250506,2665.2,2665.1,3.7522]
[1739748036658,0.293,2665.5,2665.1,4.5572]
[1739748036999,0.293,2665.5,2665.1,4.55709]
[1739748037497,0.293,2665.5,2665.1,8.3092]
[1739748037699,0.293,2665.5,2665.1,4.55709]
[1739748037936,0.95250506,2666.0,2665.3,3.75179]
[1739748038109,0.293,2665.9,2665.3,3.75179]
[1739748038304,4.04408,2665.9,2665.3,3.75179]
[1739748038512,3.75108,2665.9,2665.3,3.75179]
[1739748038832,0.293,2665.8,2665.3,3.75179]